bitfinex-derivatives/quotes_BTCF0:USTF0_20251210
["timestamp","ask_amount","ask_price","bid_price","bid_amount"]
[1765365059282,0.08564192,92429.0,92428.0,0.20862]
[1765365059482,0.16488192,92429.0,92428.0,0.20862]
[1765365060385,0.16688192,92429.0,92428.0,0.20962]
[1765365061177,0.00216192,92429.0,92428.0,0.28962]
[1765365061382,0.00216192,92429.0,92428.0,0.65042]
[1765365061586,0.08764192,92429.0,92428.0,0.65042]
[1765365063593,0.16688192,92429.0,92428.0,0.65042]
[1765365064190,0.00216192,92429.0,92428.0,0.65042]
[1765365064490,0.00216192,92429.0,92428.0,0.72811296]
[1765365065482,0.00216192,92429.0,92428.0,0.65042]
[1765365065686,0.16688192,92429.0,92428.0,0.72812149]
[1765365066194,0.16688192,92429.0,92428.0,0.65042]
[1765365066380,0.16688192,92429.0,92428.0,0.7281327]
[1765365067179,0.16688192,92429.0,92428.0,0.65042]
[1765365067392,0.00216192,92429.0,92428.0,0.65042]
[1765365068894,0.3608,92442.0,92428.0,0.65042]
[1765365069084,0.52552,92442.0,92441.0,0.16178]
[1765365069493,0.57484,92442.0,92432.0,0.30018139]
[1765365069792,0.16472,92433.0,92432.0,0.55196139]
[1765365070094,0.16472,92433.0,92432.0,0.32951143]
[1765365070594,0.08548,92433.0,92432.0,0.25178]
[1765365070790,0.53156,92442.0,92441.0,0.16214]
[1765365071191,0.52856,92442.0,92441.0,0.16214]
[1765365072486,0.52656,92442.0,92441.0,0.16214]
[1765365073892,0.57384,92442.0,92441.0,0.16214]
[1765365075294,0.21304,92442.0,92441.0,0.16214]
[1765365075489,0.16576,92442.0,92441.0,0.16214]
[1765365075696,0.002,92442.0,92441.0,0.16214]
[1765365076095,0.16375,92442.0,92441.0,0.16214]
[1765365076795,0.08377,92442.0,92441.0,0.16214]
[1765365077095,0.002,92442.0,92441.0,0.32987159]
[1765365077292,0.002,92442.0,92441.0,0.25214]
[1765365077684,0.08377,92442.0,92441.0,0.25214]
[1765365080287,0.002,92442.0,92441.0,0.25214]
[1765365083089,0.16175,92461.0,92460.0,0.16115]
[1765365083301,0.16175,92461.0,92460.0,0.06]
[1765365083502,0.16175,92461.0,92460.0,0.22115]
[1765365084296,0.16675,92461.0,92460.0,0.22215]
[1765365085300,0.16675,92461.0,92460.0,0.23291483]
[1765365085510,0.17175,92461.0,92460.0,0.23291483]
[1765365086001,0.17175,92461.0,92460.0,0.15546483]
[1765365086203,0.17175,92461.0,92460.0,0.23291483]
[1765365087403,0.17175,92461.0,92460.0,0.28146483]
[1765365087792,0.17175,92461.0,92460.0,0.061]
[1765365087994,0.17175,92461.0,92460.0,0.01197686]
[1765365088191,0.17175,92461.0,92460.0,0.001]
[1765365088391,0.17175,92461.0,92460.0,0.16215]
[1765365088605,0.17175,92461.0,92460.0,0.17331527]
[1765365088993,0.17175,92461.0,92460.0,0.001]
[1765365093104,0.17175,92461.0,92460.0,0.16215]
[1765365094794,0.17175,92461.0,92460.0,0.2107]
[1765365095301,0.01,92461.0,92460.0,0.3007]
[1765365095505,0.17175,92461.0,92460.0,0.3007]
[1765365095716,0.17175,92461.0,92460.0,0.25215]
[1765365096504,0.16675,92461.0,92460.0,0.25215]
[1765365096708,0.16975,92461.0,92460.0,0.25215]
[1765365096912,0.16475,92461.0,92460.0,0.001]
[1765365097106,0.16675,92461.0,92460.0,0.001]
[1765365098000,0.16675,92461.0,92460.0,0.16215]
[1765365098201,0.08677,92461.0,92460.0,0.2607]
[1765365098406,0.16675,92461.0,92460.0,0.2607]
[1765365099616,0.16675,92461.0,92460.0,0.21215]
[1765365099806,0.16675,92461.0,92460.0,0.16215]
[1765365101416,0.08677,92461.0,92460.0,0.2892]
[1765365101606,0.16815,92461.0,92460.0,0.2892]
[1765365102212,0.16815,92461.0,92460.0,0.24215]
[1765365102413,0.16815,92461.0,92460.0,0.001]
[1765365102616,0.16815,92461.0,92460.0,0.15466]
[1765365103308,0.16815,92461.0,92460.0,0.23238378]
[1765365105214,0.16815,92461.0,92460.0,0.27943378]
[1765365105415,0.16815,92461.0,92460.0,0.29171]
[1765365110023,0.16815,92461.0,92460.0,0.07879733]
[1765365110324,0.16815,92461.0,92460.0,0.001]
[1765365115521,0.16815,92461.0,92460.0,0.07738]
[1765365116921,0.16815,92461.0,92460.0,0.20171]
[1765365117121,0.67051,92461.0,92460.0,0.20171]
[1765365117626,0.16815,92461.0,92460.0,0.20171]
[1765365117817,0.005,92461.0,92460.0,0.28171]
[1765365118127,0.16524,92461.0,92460.0,0.28171]
[1765365118522,0.005,92461.0,92460.0,0.28171]
[1765365119026,0.08386,92461.0,92460.0,0.28171]
[1765365119724,0.005,92461.0,92460.0,0.28171]
[1765365121112,0.16524,92461.0,92460.0,0.28171]
[1765365121428,0.005,92461.0,92460.0,0.28171]
[1765365121622,0.0010815,92465.0,92464.0,0.15366]
[1765365121823,0.0010815,92465.0,92464.0,0.23366]
[1765365122023,0.0010815,92465.0,92464.0,0.33081472]
[1765365122231,0.3608,92474.0,92470.0,0.15366]
[1765365122532,0.3608,92474.0,92470.0,0.23366]
[1765365122828,0.16045628,92471.0,92470.0,0.23366]
[1765365123017,0.00021628,92471.0,92470.0,0.23366]
[1765365123727,0.07907628,92471.0,92470.0,0.23366]
[1765365124133,0.16045628,92471.0,92470.0,0.23366]
[1765365124331,0.16445628,92471.0,92470.0,0.23366]
[1765365124826,0.16845628,92471.0,92470.0,0.23466]
[1765365125725,0.00821628,92471.0,92470.0,0.23466]
[1765365125930,0.08707628,92471.0,92470.0,0.23466]
[1765365126130,0.16845628,92471.0,92470.0,0.23466]
[1765365127227,0.16845628,92471.0,92470.0,0.31246619]
[1765365127534,0.16845628,92471.0,92470.0,0.23466]
[1765365128125,0.16845628,92471.0,92470.0,0.31246046]
[1765365128630,0.15209,92470.0,92468.0,0.07780046]
[1765365128829,0.15209,92469.0,92468.0,0.15613046]
[1765365129033,0.15209,92469.0,92468.0,0.23064046]
[1765365129229,0.00321628,92471.0,92470.0,0.15284]
[1765365129532,0.07808628,92471.0,92470.0,0.32064046]
[1765365129734,0.15530628,92471.0,92470.0,0.32064046]
[1765365130035,0.15530628,92471.0,92470.0,0.24284]
[1765365130225,0.15430628,92471.0,92470.0,0.24284]
[1765365130736,0.15230628,92471.0,92470.0,0.24284]
[1765365130930,0.15330628,92471.0,92470.0,0.24284]
[1765365131119,0.15330628,92471.0,92470.0,0.32062848]
[1765365131631,0.15630628,92471.0,92470.0,0.32062848]
[1765365132023,0.15630628,92471.0,92470.0,0.16778848]
[1765365132424,0.15630628,92471.0,92470.0,0.07778848]
[1765365132624,0.15630628,92471.0,92470.0,0.15700848]
[1765365133333,0.15269,92465.0,92464.0,0.07778848]
[1765365133535,0.15269,92465.0,92464.0,0.23204848]
[1765365133735,0.15269,92465.0,92464.0,0.15426]
[1765365134538,0.15469,92465.0,92464.0,0.15426]
[1765365135734,0.15469,92465.0,92464.0,0.23204848]
[1765365136960,0.15469,92465.0,92464.0,0.15426]
[1765365141356,0.002,92465.0,92457.0,0.16554472]
[1765365141558,0.002,92465.0,92457.0,0.24554472]
[1765365142350,0.002,92465.0,92458.0,0.09715472]
[1765365142551,0.002,92465.0,92458.0,0.17715472]
[1765365144650,0.002,92465.0,92458.0,0.09715472]
[1765365144855,0.002,92465.0,92458.0,0.18715472]
[1765365146462,0.002,92465.0,92459.0,0.09715472]
[1765365146660,0.002,92465.0,92459.0,0.18715472]
[1765365147065,0.002,92465.0,92457.0,0.06839]
[1765365147263,0.3608,92458.0,92457.0,0.06839]
[1765365147765,0.3608,92458.0,92455.0,0.09715472]
[1765365147953,0.50228,92457.0,92455.0,0.09715472]
[1765365149652,0.50228,92457.0,92455.0,0.09915472]
[1765365149850,0.3608,92458.0,92455.0,0.09915472]
[1765365150052,0.3608,92476.0,92456.0,0.09715472]
[1765365150363,0.0010812,92490.0,92470.0,0.3608]
[1765365150563,0.0010812,92490.0,92470.0,0.4508]
[1765365151462,0.00421628,92471.0,92470.0,0.4518]
[1765365151965,0.00721628,92471.0,92470.0,0.4518]
[1765365152167,0.00321628,92471.0,92470.0,0.4508]
[1765365152365,0.0010812,92490.0,92470.0,0.4508]
[1765365152566,0.0010812,92490.0,92483.0,0.07777424]
[1765365152756,0.0010812,92490.0,92484.0,0.07777424]
[1765365153159,0.0010812,92490.0,92483.0,0.07777424]
[1765365153665,0.0070812,92490.0,92483.0,0.07777424]
[1765365153866,0.0120812,92490.0,92483.0,0.07777424]
[1765365154562,0.0120812,92490.0,92484.0,0.07777424]
[1765365155264,0.0120812,92490.0,92483.0,0.07877424]
[1765365155459,0.0120812,92490.0,92489.0,0.3608]
[1765365155689,0.0120812,92490.0,92489.0,0.4408]
[1765365156560,0.0060812,92490.0,92489.0,0.4408]
[1765365156859,0.0110812,92490.0,92489.0,0.4408]
[1765365164276,0.0050812,92490.0,92489.0,0.4418]
[1765365164470,0.0100812,92490.0,92489.0,0.4418]
[1765365165372,0.0100812,92490.0,92489.0,0.001]
[1765365166976,0.0100812,92490.0,92489.0,0.05921629]
[1765365167275,0.0100812,92490.0,92489.0,0.001]
[1765365169576,0.0100812,92490.0,92489.0,0.05921969]
[1765365170279,0.0100812,92490.0,92489.0,0.001]
[1765365172878,0.0100812,92490.0,92489.0,0.05923543]
[1765365173280,0.0100812,92490.0,92489.0,0.001]
[1765365173982,0.3708812,92490.0,92489.0,0.001]
[1765365178885,0.3864412,92490.0,92481.0,0.05824169]
[1765365179087,0.3608,92482.0,92481.0,0.05824169]
[1765365179292,0.86296,92482.0,92478.0,0.01762]
[1765365180081,0.86296,92482.0,92481.0,0.001]
[1765365180785,0.50516,92482.0,92481.0,0.001]
[1765365181586,0.003,92482.0,92481.0,0.001]
[1765365181786,0.50516,92482.0,92481.0,0.3618]
[1765365182286,0.50916,92482.0,92481.0,0.3608]
[1765365184090,0.007,92482.0,92481.0,0.3608]
[1765365184395,0.48476,92482.0,92481.0,0.3608]
[1765365185587,0.01556,92480.0,92476.0,0.07777424]
[1765365185807,0.01556,92475.0,92466.0,0.05835467]
[1765365186003,0.7216,92472.0,92462.0,0.05835467]
[1765365186204,0.74500545,92472.0,92460.0,0.11115561]
[1765365186605,0.74500545,92472.0,92459.0,0.05835467]
[1765365186810,0.74500545,92472.0,92460.0,0.11115561]
[1765365187012,0.7216,92472.0,92463.0,0.05835467]
[1765365187208,0.7216,92472.0,92461.0,0.05835467]
[1765365187713,0.7226,92472.0,92462.0,0.05835467]
[1765365187916,0.7226,92472.0,92463.0,0.05835467]
[1765365188308,0.7256,92472.0,92461.0,0.05835467]
[1765365189412,0.7256,92472.0,92460.0,0.16951028]
[1765365189618,0.7296,92472.0,92460.0,0.16951028]
[1765365190119,1.2288,92472.0,92460.0,0.16951028]
[1765365190421,1.2298,92472.0,92471.0,0.00116223]
[1765365190711,1.2338,92472.0,92471.0,0.00116223]
[1765365191106,1.2238,92472.0,92471.0,0.00016223]
[1765365191507,1.2268,92472.0,92471.0,0.00016223]
[1765365191915,0.7246,92472.0,92471.0,0.00016223]
[1765365192113,1.22684,92472.0,92471.0,0.00016223]
[1765365192610,0.7226,92472.0,92471.0,0.00016223]
[1765365192809,0.7246,92472.0,92471.0,0.00016223]
[1765365193008,0.49808,92472.0,92471.0,0.00016223]
[1765365194219,0.50524,92472.0,92471.0,0.00016223]
[1765365196512,0.003,92472.0,92471.0,0.00016223]
[1765365196713,0.50524,92472.0,92471.0,0.00016223]
[1765365198224,0.50524,92472.0,92471.0,0.0585169]
[1765365200515,0.003,92472.0,92471.0,0.0585169]
[1765365200709,0.50524,92472.0,92471.0,0.0585169]
[1765365201216,0.50524,92472.0,92471.0,0.00016223]
[1765365203215,0.003,92472.0,92471.0,0.00016223]
[1765365203416,0.44896,92472.0,92471.0,0.00016223]
[1765365203724,0.45096,92472.0,92471.0,0.00016223]
[1765365203923,0.50524,92472.0,92471.0,0.00016223]
[1765365204918,0.003,92472.0,92471.0,0.00016223]
[1765365205321,0.4498,92472.0,92471.0,0.00016223]
[1765365205725,0.4488,92472.0,92471.0,0.00016223]
[1765365205920,0.4478,92472.0,92471.0,0.00016223]
[1765365206117,0.4498,92472.0,92471.0,0.00016223]
[1765365206313,0.4488,92472.0,92471.0,0.00016223]
[1765365206519,0.4498,92472.0,92471.0,0.00016223]
[1765365206726,0.4478,92472.0,92471.0,0.00016223]
[1765365206930,0.003,92472.0,92471.0,0.00016223]
[1765365215833,0.003,92472.0,92470.0,2.23e-06]
[1765365218436,0.001,92472.0,92470.0,2.23e-06]
[1765365218735,0.007,92472.0,92470.0,0.00100223]
[1765365219231,0.002,92472.0,92470.0,2.23e-06]
[1765365219423,0.005,92472.0,92470.0,2.23e-06]
[1765365222126,0.002,92472.0,92470.0,2.23e-06]
[1765365222327,0.005,92472.0,92470.0,2.23e-06]
[1765365227133,0.50224,92471.0,92470.0,2.23e-06]
[1765365228446,0.50424,92471.0,92470.0,2.23e-06]
[1765365228839,0.50724,92471.0,92470.0,2.23e-06]
[1765365229038,0.51024,92471.0,92470.0,2.23e-06]
[1765365229639,0.50724,92471.0,92470.0,2.23e-06]
[1765365231247,1.22884,92471.0,92470.0,2.23e-06]
[1765365232042,1.2537196,92471.0,92462.0,0.00016223]
[1765365232249,1.2537196,92471.0,92440.0,0.00108179]
[1765365232250,0.3608,92463.0,92440.0,0.00108179]
[1765365232545,0.3608,92441.0,92440.0,0.00108179]
[1765365232748,0.86308,92441.0,92440.0,1.79e-06]
[1765365233341,0.86308,92441.0,92431.0,0.00016223]
[1765365234149,0.3608,92432.0,92431.0,0.00016223]
[1765365234461,0.86308,92432.0,92431.0,0.00016223]
[1765365234953,0.86317655,92432.0,92431.0,0.00016223]
[1765365235147,0.8878362,92432.0,92415.0,0.00108208]
[1765365235449,0.3608,92416.0,92415.0,0.00108208]
[1765365235645,0.86321748,92416.0,92415.0,0.00108208]
[1765365236448,0.86321748,92416.0,92415.0,0.01508208]
[1765365237249,0.86321748,92416.0,92415.0,0.02508208]
[1765365237852,0.86321748,92416.0,92415.0,0.01108208]
[1765365238053,0.86721748,92416.0,92415.0,0.03808208]
[1765365238446,0.86521748,92416.0,92415.0,0.01708208]
[1765365238756,0.86721748,92416.0,92415.0,0.03808208]
[1765365239756,0.86521748,92416.0,92415.0,0.02208208]
[1765365240053,0.86721748,92416.0,92415.0,0.03708208]
[1765365240258,0.86721748,92416.0,92415.0,0.02520708]
[1765365241249,0.86521748,92416.0,92415.0,0.01020708]
[1765365241449,0.86521748,92416.0,92415.0,0.01120708]
[1765365241653,0.86321748,92416.0,92415.0,0.004]
[1765365242552,1.22401748,92416.0,92415.0,0.004]
[1765365243347,1.22401748,92416.0,92406.0,0.00016223]
[1765365243553,0.3608,92407.0,92406.0,0.00016223]
[1765365243754,0.86336855,92407.0,92406.0,0.00016223]
[1765365244963,0.86336855,92407.0,92406.0,0.00116223]
[1765365245355,0.36092855,92407.0,92406.0,0.00116223]
[1765365245556,0.86340855,92407.0,92406.0,0.00116223]
[1765365246155,0.86340855,92407.0,92406.0,0.00216223]
[1765365246958,0.86340855,92407.0,92406.0,0.00116223]
[1765365247161,0.86440855,92407.0,92406.0,0.00116223]
[1765365247460,0.86944855,92407.0,92406.0,0.00116223]
[1765365248062,0.36592855,92407.0,92406.0,0.00116223]
[1765365248256,0.86944855,92407.0,92406.0,0.00116223]
[1765365250757,0.36692855,92407.0,92406.0,0.01787223]
[1765365251159,0.86948855,92407.0,92406.0,0.01787223]
[1765365251472,0.86948855,92407.0,92406.0,0.07492223]
[1765365252065,0.86952855,92407.0,92406.0,0.07492223]
[1765365252460,0.36692855,92407.0,92406.0,0.07492223]
[1765365252655,0.86952855,92407.0,92406.0,0.07492223]
[1765365253360,0.50872855,92407.0,92406.0,0.07492223]
[1765365254166,0.50772855,92407.0,92406.0,0.07492223]
[1765365254368,0.50372855,92407.0,92406.0,0.07392223]
[1765365254573,0.50972855,92407.0,92406.0,0.07492223]
[1765365254957,0.50372855,92407.0,92406.0,0.07392223]
[1765365255169,0.50576855,92407.0,92406.0,0.07492223]
[1765365255769,0.50576855,92407.0,92406.0,0.07792223]
[1765365256765,0.00312855,92407.0,92406.0,0.07792223]
[1765365257073,0.50576855,92407.0,92406.0,0.07792223]
[1765365257457,0.00312855,92407.0,92406.0,0.07792223]
[1765365257672,0.50572855,92407.0,92406.0,0.07792223]
[1765365259372,0.00312855,92407.0,92406.0,0.07792223]
[1765365259672,0.44988855,92407.0,92406.0,0.07792223]
[1765365261971,0.50572855,92407.0,92406.0,0.07792223]
[1765365263175,0.00312855,92407.0,92406.0,0.07792223]
[1765365269774,0.1112494,92420.0,92419.0,0.05773]
[1765365269987,0.00016223,92425.0,92424.0,0.05773]
[1765365270175,0.50272223,92425.0,92424.0,0.05773]
[1765365270481,0.50272223,92425.0,92420.0,0.07528]
[1765365270685,0.50272223,92425.0,92415.0,0.01755]
[1765365270977,0.3608,92417.0,92406.0,0.01787223]
[1765365271378,0.3608,92408.0,92406.0,0.01787223]
[1765365271577,0.50256,92407.0,92406.0,0.01787223]
[1765365272276,0.50256,92407.0,92406.0,0.00016223]
[1765365272484,0.50256,92407.0,92406.0,0.01771223]
[1765365272674,0.50356,92407.0,92406.0,0.02071223]
[1765365273082,0.50456,92407.0,92406.0,0.02171223]
[1765365273282,0.50456,92407.0,92406.0,0.00416223]
[1765365275381,0.52907967,92407.0,92406.0,0.00416223]
[1765365277174,0.41543438,92407.0,92406.0,0.00416223]
[1765365277376,0.41443438,92407.0,92406.0,0.00116223]
[1765365277680,0.41643438,92407.0,92406.0,0.00116223]
[1765365278184,0.41443438,92407.0,92406.0,0.00116223]
[1765365278490,0.41543438,92407.0,92406.0,0.00016223]
[1765365278793,0.82243438,92407.0,92390.0,0.00108237]
[1765365278976,0.3608,92391.0,92390.0,0.00108237]
[1765365279177,0.8634,92391.0,92390.0,0.00108237]
[1765365279780,0.88791579,92391.0,92390.0,0.00108237]
[1765365280286,0.89091579,92391.0,92390.0,0.00208237]
[1765365281686,0.39031579,92391.0,92390.0,0.00208237]
[1765365281893,0.89291579,92391.0,92390.0,0.00308237]
[1765365282578,0.8684,92391.0,92390.0,0.00308237]
[1765365282887,0.86844,92391.0,92390.0,0.05939237]
[1765365285788,0.3658,92391.0,92390.0,0.05939237]
[1765365285994,0.86848,92391.0,92390.0,0.05939237]
[1765365286292,0.3658,92391.0,92390.0,0.05939237]
[1765365286499,0.86848,92391.0,92390.0,0.05939237]
[1765365288294,0.3658,92391.0,92390.0,0.05939237]
[1765365288498,0.86848,92391.0,92390.0,0.05939237]
[1765365288995,0.50768,92391.0,92390.0,0.05939237]
[1765365293899,0.50768,92391.0,92390.0,0.03077237]
[1765365294103,0.86848,92391.0,92390.0,0.00308237]
[1765365295295,0.86848,92391.0,92390.0,0.03156237]
[1765365295590,0.86848,92391.0,92390.0,0.06096237]
[1765365298702,0.86848,92391.0,92390.0,0.03156237]
[1765365298903,0.3658,92391.0,92390.0,0.00308237]
[1765365299105,0.86848,92391.0,92390.0,0.00308237]
[1765365302691,0.3658,92391.0,92390.0,0.00308237]
[1765365302896,0.86848,92391.0,92390.0,0.00308237]
[1765365303407,0.89318781,92391.0,92390.0,0.00308237]
[1765365304598,0.39050781,92391.0,92390.0,0.06096237]
[1765365304802,0.86848,92391.0,92390.0,0.06096237]
[1765365305006,0.8932203,92391.0,92390.0,0.06096237]
[1765365305409,0.8932203,92391.0,92390.0,0.00308237]
[1765365312012,0.3905403,92391.0,92390.0,0.06086237]
[1765365312310,0.8932203,92391.0,92390.0,0.06086237]
[1765365312505,0.8932203,92391.0,92390.0,0.00308237]
[1765365323213,0.8932203,92391.0,92382.0,0.0172]
[1765365323414,0.3608,92383.0,92381.0,0.00016233]
[1765365323718,0.5274603,92382.0,92381.0,0.00016233]
[1765365324712,0.5274603,92382.0,92381.0,0.00116233]
[1765365325007,0.5274603,92382.0,92379.0,0.00021628]
[1765365325222,0.0247403,92381.0,92379.0,0.00021628]
[1765365325517,0.0247403,92380.0,92379.0,0.00021628]
[1765365327524,0.0247403,92380.0,92379.0,0.00221628]
[1765365327818,0.0247403,92380.0,92379.0,0.00321628]
[1765365329023,0.0277403,92380.0,92379.0,0.00321628]
[1765365336222,0.0277403,92380.0,92379.0,0.06006628]
[1765365336630,0.50576,92380.0,92379.0,0.06006628]
[1765365337227,0.003,92380.0,92379.0,0.46006628]
[1765365337432,0.00016233,92400.0,92391.0,0.05685]
[1765365337433,0.3608,92392.0,92391.0,0.05685]
[1765365337633,0.86356,92392.0,92391.0,0.05685]
[1765365339134,0.86956,92392.0,92391.0,0.05785]
[1765365340040,0.3668,92392.0,92391.0,0.05785]
[1765365340340,0.86956,92392.0,92391.0,0.05785]
[1765365342240,0.86956,92392.0,92391.0,0.001]
[1765365344032,0.86956,92392.0,92391.0,0.02953]
[1765365344233,0.86956,92392.0,92391.0,0.05785]
[1765365345141,0.86952,92392.0,92391.0,0.05785]
[1765365345334,0.3668,92392.0,92391.0,0.05785]
[1765365345540,0.86952,92392.0,92391.0,0.05785]
[1765365347542,0.3668,92392.0,92391.0,0.05785]
[1765365347742,0.86948,92392.0,92391.0,0.05785]
[1765365349739,0.3668,92392.0,92391.0,0.05785]
[1765365349940,0.86948,92392.0,92391.0,0.05785]
[1765365350634,0.006,92392.0,92391.0,0.05785]
[1765365350835,0.00016233,92400.0,92399.0,0.05685]
[1765365351139,0.50284233,92400.0,92399.0,0.05685]
[1765365351739,0.50764233,92400.0,92399.0,0.05685]
[1765365352044,0.50284233,92400.0,92391.0,0.001]
[1765365352341,0.50484233,92400.0,92391.0,0.001]
[1765365353145,0.50484233,92400.0,92390.0,0.00016233]
[1765365353346,0.50984233,92400.0,92399.0,0.001]
[1765365353937,0.50984233,92400.0,92391.0,0.001]
[1765365354553,0.50584233,92400.0,92390.0,0.11156301]
[1765365355144,0.61724301,92400.0,92390.0,0.00016233]
[1765365355450,0.61724301,92400.0,92390.0,0.11156301]
[1765365356135,0.61624301,92400.0,92390.0,0.11156301]
[1765365356447,0.61524301,92400.0,92390.0,0.00016233]
[1765365357746,0.50384233,92400.0,92390.0,0.00016233]
[1765365357945,0.61524301,92400.0,92390.0,0.00016233]
[1765365358538,0.50384233,92400.0,92390.0,0.00016233]
[1765365358843,0.61524301,92400.0,92390.0,0.00016233]
[1765365359642,0.72664369,92400.0,92390.0,0.00016233]
[1765365359846,0.3608,92391.0,92390.0,0.00016233]
[1765365361141,0.3618,92391.0,92390.0,0.00216233]
[1765365362040,0.3618,92391.0,92390.0,0.00416233]
[1765365362940,0.3618,92391.0,92390.0,0.00216233]
[1765365363140,0.3608,92391.0,92390.0,0.00016233]
[1765365363341,0.3618,92391.0,92390.0,0.00016233]
[1765365365344,0.38610385,92391.0,92390.0,0.00016233]
[1765365367848,0.38610385,92391.0,92379.0,0.00021628]
[1765365368054,0.3608,92380.0,92379.0,0.00021628]
[1765365368256,0.88774385,92380.0,92379.0,0.00021628]
[1765365369146,0.86344,92380.0,92379.0,0.00021628]
[1765365369849,0.3618,92380.0,92379.0,0.00221628]
[1765365370244,0.85004,92380.0,92379.0,0.00221628]
[1765365371149,0.85004,92380.0,92379.0,0.00421628]
[1765365373049,0.3618,92380.0,92379.0,0.00421628]
[1765365373254,0.86448,92380.0,92379.0,0.00421628]
[1765365378958,0.3618,92380.0,92379.0,0.00421628]
[1765365379155,0.86452,92380.0,92379.0,0.00421628]
[1765365379554,0.50372,92380.0,92379.0,0.00421628]
[1765365386264,0.52804329,92380.0,92379.0,0.00421628]
[1765365389252,0.02532329,92380.0,92379.0,0.00421628]
[1765365389459,0.001,92380.0,92379.0,0.00421628]
[1765365389678,0.50372,92380.0,92379.0,0.00421628]
[1765365391271,0.001,92380.0,92379.0,0.00421628]
[1765365391463,0.50372,92380.0,92379.0,0.00421628]
[1765365395072,0.52805137,92380.0,92379.0,0.00421628]
[1765365406281,0.02533137,92380.0,92379.0,0.00421628]
[1765365406585,0.52809137,92380.0,92379.0,0.00421628]
[1765365407481,0.02533137,92380.0,92379.0,0.00421628]
[1765365407670,0.52809137,92380.0,92379.0,0.00421628]
[1765365410179,0.50376,92380.0,92379.0,0.00421628]
[1765365410378,0.52807136,92380.0,92379.0,0.00421628]
[1765365411991,0.02531136,92380.0,92379.0,0.00421628]
[1765365412185,0.52807136,92380.0,92379.0,0.00421628]
[1765365415691,0.02531136,92380.0,92379.0,0.00421628]
[1765365415885,0.52807136,92380.0,92379.0,0.00421628]
[1765365420392,0.02531136,92380.0,92379.0,0.00421628]
[1765365420893,0.50376,92380.0,92379.0,0.00421628]
[1765365421292,0.001,92380.0,92379.0,0.00421628]
[1765365421486,0.45252,92380.0,92379.0,0.00421628]
[1765365425398,0.50276,92380.0,92379.0,0.00421628]
[1765365427493,0.52683906,92380.0,92379.0,0.00421628]
[1765365430099,0.52568597,92380.0,92379.0,0.00421628]
[1765365432800,0.02407906,92380.0,92379.0,0.00421628]
[1765365433201,0.52679906,92380.0,92379.0,0.00421628]
[1765365434704,0.02407906,92380.0,92379.0,0.00421628]
[1765365435006,0.52679906,92380.0,92379.0,0.00421628]
[1765365439907,0.58650906,92380.0,92379.0,0.00421628]
[1765365451611,0.64467989,92380.0,92379.0,0.00421628]
[1765365453413,0.05668,92366.0,92365.0,0.00108267]
[1765365453607,0.94431906,92366.0,92365.0,0.00108267]
[1765365454405,0.94443219,92366.0,92365.0,0.00108267]
[1765365454714,0.94543219,92366.0,92365.0,0.01108267]
[1765365455703,0.94743219,92366.0,92365.0,0.02308267]
[1765365457206,0.94543219,92366.0,92365.0,0.01108267]
[1765365457411,0.94543219,92366.0,92365.0,0.00408267]
[1765365458815,0.94543219,92366.0,92365.0,0.00508267]
[1765365459116,0.05668,92348.0,92347.0,0.05556]
[1765365459322,0.92035684,92348.0,92347.0,0.05556]
[1765365459708,0.50287684,92348.0,92347.0,0.05556]
[1765365459920,0.00011684,92348.0,92347.0,0.05556]
[1765365460122,0.11150338,92357.0,92356.0,0.05556]
[1765365460323,0.33696,92357.0,92356.0,0.05556]
[1765365461023,0.27968676,92366.0,92365.0,0.05556]
[1765365461226,0.58326647,92366.0,92365.0,0.05556]
[1765365462327,0.58326647,92366.0,92365.0,0.02739]
[1765365462527,0.58326647,92366.0,92358.0,0.01701]
[1765365462528,0.05668,92359.0,92358.0,0.07257]
[1765365463522,0.05668,92359.0,92358.0,0.05556]
[1765365463723,0.55948,92359.0,92358.0,0.05556]
[1765365464024,0.56048,92359.0,92358.0,0.05856]
[1765365464322,0.56048,92359.0,92358.0,0.03039]
[1765365464531,0.5842199,92359.0,92358.0,0.05856]
[1765365464824,0.5852199,92359.0,92358.0,0.07857]
[1765365465418,0.5852199,92359.0,92358.0,0.03339]
[1765365465619,0.5852199,92359.0,92358.0,0.006]
[1765365466314,0.9460199,92359.0,92358.0,0.006]
[1765365468232,0.94606658,92359.0,92358.0,0.006]
[1765365470234,0.94606658,92359.0,92358.0,0.07857]
[1765365470622,0.94606658,92359.0,92358.0,0.006]
[1765365471625,0.05668,92344.0,92343.0,0.05556]
[1765365471819,0.55952668,92344.0,92343.0,0.05556]
[1765365472834,0.56152668,92344.0,92343.0,0.07156]
[1765365473028,0.56252668,92344.0,92343.0,0.07556]
[1765365473229,0.58668773,92344.0,92343.0,0.07556]
[1765365473434,0.56252668,92344.0,92343.0,0.07545]
[1765365473630,0.56152668,92344.0,92343.0,0.06345]
[1765365474638,0.00204668,92344.0,92343.0,0.06345]
[1765365474824,0.49092668,92344.0,92343.0,0.06345]
[1765365475234,0.52089668,92344.0,92343.0,0.06345]
[1765365475435,0.54823668,92344.0,92343.0,0.06345]
[1765365478033,0.54823668,92344.0,92343.0,0.03539]
[1765365479635,0.54823668,92344.0,92343.0,0.06345]
[1765365481330,0.56219668,92344.0,92343.0,0.06345]
[1765365482736,0.00204668,92344.0,92343.0,0.06345]
[1765365483242,0.50488668,92344.0,92343.0,0.06345]
[1765365483838,0.00204668,92344.0,92343.0,0.06345]
[1765365484138,0.45128668,92344.0,92343.0,0.06345]
[1765365484540,0.50859668,92344.0,92343.0,0.06345]
[1765365485028,0.48125668,92344.0,92343.0,0.06345]
[1765365486540,0.50859668,92344.0,92343.0,0.06345]
[1765365487142,0.56219668,92344.0,92343.0,0.06345]
[1765365489444,0.56219668,92344.0,92343.0,0.008]
[1765365493650,0.05935668,92344.0,92343.0,0.06365]
[1765365493847,0.56219668,92344.0,92343.0,0.06365]
[1765365494048,0.00204668,92344.0,92343.0,0.91445]
[1765365495946,0.05840668,92344.0,92343.0,0.42445]
[1765365496848,0.03015668,92344.0,92343.0,0.42445]
[1765365498839,0.00204668,92344.0,92343.0,0.42445]
[1765365501750,0.05840668,92344.0,92343.0,0.42445]
[1765365503939,0.03015668,92344.0,92343.0,0.42445]
[1765365504352,0.00204668,92344.0,92343.0,0.42445]